Workbook

Sheet DADES
A1: INS SANT RAMON | C1: DEPARTAMENT D'EDUCACIÓ FÍSICA LA MARATÓ
A3: NOM | C3: JORDI | H3: EDAT | I3: 17
A4: TEST MÀXIM COURS NAVETTE | C4: 10 | D4: DISTÀNCIA max.= | F4: =IF(C4="","",VLOOKUP(C4,V19:W45,2)) -> 2166.666667 | G4: VELOCITAT max.= | I4: =IF(C4="","",(F4/1000)/(C4/60)) -> 13
D5: VO2 max= | F5: =IF(C4="","",IF(I3="","EDAT ?",31.025+(3.238*I4)-(3.248*$I$3)+((0.1536*I4)*$I$3))) -> 51.8486
C7: MEDALLER | I7: M A R A T Ó
B8: 1a | C8: =IF($I$9>=5,"MOLT BÉ! MEDALLA 5 KM","") ->  | I8: PORTO | J8: FALTA
B9: 2a | C9: =IF($I$9>=10,"ENHORABONA! MEDALLA 10 KM","") ->  | I9: =SUM(C19:C50) -> 4 | J9: =IF(I9>42,"OBJECTIU ACONSEGUIT",I9-42) -> -38
B10: 3a | C10: =IF($I$9>=15,"FELICITATS! MEDALLA 15 KM","") -> 
B11: 4a | C11: =IF($I$9>=20,"ETS EL/LA MILLOR! HAS ACONSEGUIT LA MITJA MARATÓ","") -> 
B12: 5a | C12: =IF($I$9>=25,"FANTÀSTIC! MEDALLA 25 KM","") -> 
B13: 5a | C13: =IF($I$9>=30,"VISCA! JA TENS LA MEDALLA DE 30 KM","") -> 
B14: 7a | C14: =IF($I$9>=35,"SEGUEIX AIXÍ! MEDALLA 35 KM","") -> 
B15: 8a | C15: =IF($I$9>=40,"ENDAVANT! QUEDA POC! MEDALLA 40 KM","") -> 
B16: 9a | C16: =IF($I$9>42,"HO HAS ACONSEGUIT! TOTA LA MARATÓ","") -> 
S17: TAULA EQUIVALÈNCIES | V17: COURS NAVETT
A18: DATA ENTRENAMENT | C18: DISTÀNC. ( k m ) | D18: TEMPS hh:mm:ss | E18: VELOC. KM/H | F18: TEMPS EN FER 1 KM | G18: INTENSITAT | H18: CÀRREGA | I18: CALORIES | J18: CALORIES ACUML. | K18: DISTÀNCIA ACUMUL. | L18: TEMPS ACUMUL. | Q18: kcalories/h segons velocitat | S18: VELOCITAT km/h | T18: KCAL/HORA | V18: PERÍODE (minuts) | W18: DISTÀNCIA (metres)
A19: 1 | B19: 2018-09-14 | C19: 1 | D19: 0.003935185185 | E19: =IF(D19="","",IF(C19="","",C19/D19/24)) -> 10.58823529 | F19: =IF(C19="","",IF(D19="","",D19/C19)) -> 0.003935185185 | G19: =IF(C19="","",IF($C$4="","falta test",E19/$I$4)) -> 0.814479638 | H19: =IF(C19="","",IF($I$4="","falta test",C19*G19)) -> 0.814479638 | I19: =IF(E19="","",$Q19*$D19*24) -> 75.55555556 | J19: =IF(I19="","",I19) -> 75.55555556 | K19: =IF(C19="","",C19) -> 1 | L19: =IF(D19="","",D19) -> 0.003935185185 | Q19: =IF(E19="","",VLOOKUP(E19,TAULA,2,TRUE)) -> 800 | S19: 1 | T19: 50 | V19: 1 | W19: 133.3333333
A20: 2 | B20: 2018-09-20 | C20: 1 | D20: 0.005208333333 | E20: 8 | F20: 0.005208333333 | G20: 0.6153846154 | H20: 0.6153846154 | I20: 62.5 | J20: =IF(I20="","",J19+I20) -> 138.0555556 | K20: =IF(C20="","",K19+C20) -> 2 | L20: =IF(D20="","",L19+D20) -> 0.009143518519 | Q20: =IF(E20="","",VLOOKUP(E20,TAULA,2,TRUE)) -> 500 | S20: 2 | T20: 100 | V20: 1.5 | W20: 212.5
A21: 3 | B21: 2018-09-21 | C21: 2 | D21: 0.01076388889 | E21: 7.741935484 | F21: 0.005381944444 | G21: 0.5955334988 | H21: 1.191066998 | I21: 90.41666667 | J21: 228.4722222 | K21: 4 | L21: 0.01990740741 | Q21: 350 | S21: 3 | T21: 150 | V21: 2 | W21: 300
A22: 4 | S22: 4 | T22: 200 | V22: 2.5 | W22: 385.4166667
A23: 5 | S23: 5 | T23: 250 | V23: 3 | W23: 475
A24: 6 | S24: 6 | T24: 300 | V24: 3.5 | W24: 568.75
A25: 7 | S25: 7 | T25: 350 | V25: 4 | W25: 666.6666667
A26: 8 | S26: 8 | T26: 500 | V26: 4.5 | W26: 768.75
A27: 9 | S27: 9 | T27: 700 | V27: 5 | W27: 875
A28: 10 | S28: 10 | T28: 800 | V28: 5.5 | W28: 985.4166667
A29: 11 | S29: 11 | T29: 900 | V29: 6 | W29: 1100
A30: 12 | S30: 12 | T30: 950 | V30: 6.5 | W30: 1218.75
A31: 13 | S31: 13 | T31: 1000 | V31: 7 | W31: 1341.666667
A32: 14 | S32: 14 | T32: 1050 | V32: 7.5 | W32: 1468.75
A33: 15 | S33: 15 | T33: 1100 | V33: 8 | W33: 1600
A34: 16 | S34: 16 | T34: 1200 | V34: 8.5 | W34: 1735.416667
A35: 17 | S35: 17 | T35: 1250 | V35: 9 | W35: 1875
A36: 18 | S36: 18 | T36: 1300 | V36: 9.5 | W36: 2018.75
A37: 19 | S37: 19 | T37: 1350 | V37: 10 | W37: 2166.666667
A38: 20 | S38: 20 | T38: 1450 | V38: 10.5 | W38: 2318.75
A39: 21 | V39: 11 | W39: 2475
A40: 22 | V40: 11.5 | W40: 2635.416667
A41: 23 | V41: 12 | W41: 2800
A42: 24 | V42: 12.5 | W42: 2968.75
A43: 25 | V43: 13 | W43: 3141.666667
A44: 26 | V44: 13.5 | W44: 3318.75
A45: 27 | V45: 14 | W45: 3500
A46: 28
A47: 29
A48: 30
A49: 31
A50: 32
